fUSD/lending_fUSD_20240727
["ID","MTS","AMOUNT","RATE_DAILY","PERIOD"]
[333362414,1722070318806,-500.0,0.00010998,2]
[333362415,1722070318816,-327.88,0.00010998,2]
[333362416,1722070318825,-156.99,0.00010998,2]
[333362417,1722070318835,-172.98,0.00010998,2]
[333362418,1722070318845,-500.0,0.00010998,2]
[333362419,1722070318855,-500.0,0.00010998,2]
[333362420,1722070318865,-414.04,0.00010998,2]
[333362421,1722070318875,-500.0,0.00010998,2]
[333362422,1722070318885,-500.0,0.00010998,2]
[333362423,1722070318896,-500.0,0.00010998,2]
[333362424,1722070318905,-500.0,0.00010998,2]
[333362425,1722070318915,-325.16,0.00010998,2]
[333362426,1722070318924,-500.0,0.00010998,2]
[333362427,1722070318935,-500.0,0.00010998,2]
[333362428,1722070318944,-524.1,0.00010998,2]
[333362429,1722070318954,-524.1,0.00010998,2]
[333362430,1722070318964,-524.1,0.00010998,2]
[333362431,1722070318974,-524.1,0.00010998,2]
[333362432,1722070318984,-524.1,0.00010998,2]
[333362433,1722070318994,-524.1,0.00010998,2]
[333362434,1722070319004,-500.0,0.00010998,2]
[333362435,1722070319015,-500.0,0.00010998,2]
[333362436,1722070319025,-500.0,0.00010998,2]
[333362437,1722070319035,-524.1,0.00010998,2]
[333362438,1722070319045,-500.0,0.00010998,2]
[333362439,1722070319055,-500.0,0.00010998,2]
[333362440,1722070319065,-500.0,0.00010998,2]
[333362441,1722070319075,-402.65,0.00010998,2]
[333362442,1722070319085,-357.07111047,0.00010998,2]
[333362443,1722070319095,-500.0,0.00010998,2]
[333362444,1722070319105,-500.0,0.00010998,2]
[333362445,1722070319115,-500.0,0.00010998,2]
[333362446,1722070319124,-500.0,0.00010998,2]
[333362447,1722070319134,-500.0,0.00010998,2]
[333362448,1722070319143,-500.0,0.00010998,2]
[333362449,1722070319153,-500.0,0.00010998,2]
[333362450,1722070319163,-500.0,0.00010998,2]
[333362451,1722070319173,-500.0,0.00010998,2]
[333362452,1722070319183,-509.2,0.00010998,2]
[333362453,1722070319193,-753.19,0.00010998,2]
[333362454,1722070319204,-753.19,0.00010998,2]
[333362455,1722070319213,-753.19,0.00010998,2]
[333362456,1722070319222,-26.90995353,0.00010998,2]
[333362457,1722070319317,-726.28004647,0.00010998,2]
[333362458,1722070319327,-753.19,0.00010998,2]
[333362459,1722070319337,-753.19,0.00010998,2]
[333362460,1722070319347,-753.19,0.00010998,2]
[333362461,1722070319357,-552.32,0.00010998,2]
[333362462,1722070319367,-525.42,0.00010998,2]
[333362463,1722070319377,-500.0,0.00010998,2]
[333362464,1722070319387,-500.0,0.00010998,2]
[333362465,1722070319397,-155.0,0.00010998,2]
[333362466,1722070319406,-500.0,0.00010998,2]
[333362467,1722070319416,-500.0,0.00010998,2]
[333362468,1722070319425,-477.93415351,0.00010998,2]
[333362469,1722070319437,-22.06584649,0.00010998,2]
[333362470,1722070319447,-500.0,0.00010998,2]
[333362471,1722070319456,-500.0,0.00010998,2]
[333362472,1722070319467,-500.0,0.00010998,2]
[333362473,1722070319476,-500.0,0.00010998,2]
[333362474,1722070319486,-500.0,0.00010998,2]
[333362475,1722070319496,-500.0,0.00010998,2]
[333362476,1722070319505,-156.73415354,0.00010998,2]
[333362477,1722070319517,-382.96584646,0.00010998,2]
[333362478,1722070319526,-500.0,0.00010998,2]
[333362479,1722070319535,-500.0,0.00010998,2]
[333362480,1722070319545,-500.0,0.00010998,2]
[333362481,1722070319554,-500.0,0.00010998,2]
[333362482,1722070319564,-500.0,0.00010998,2]
[333362483,1722070319574,-500.0,0.00010998,2]
[333362484,1722070319584,-500.0,0.00010998,2]
[333362485,1722070319594,-500.0,0.00010998,2]
[333362486,1722070319604,-500.0,0.00010998,2]
[333362487,1722070319614,-57.9794257,0.00010998,2]
[333362488,1722070330175,206.35,0.0001337,30]
[333362490,1722070350755,150.0,0.00014796,120]
[333362516,1722070510817,2207.22720134,0.00015,30]
[333362528,1722070816144,189.15,0.0001337,30]
[333362544,1722070848171,2207.22720134,6.8e-05,2]
[333362545,1722070891749,150.0,0.00018549,120]
[333362560,1722071317174,2207.22720134,0.00015,30]
[333362579,1722071389097,173.38,0.0001337,30]
[333362595,1722071432135,-653.26372546,7e-05,10]
[333362599,1722071432540,-1320.15039067,7e-05,10]
[333362600,1722071432554,-233.81308521,7e-05,10]
[333362601,1722071432563,-208.88191479,8.219e-05,2]
[333362602,1722071432575,-175.37808521,8.219e-05,2]
[333362603,1722071432584,-250.0,9.812e-05,2]
[333362604,1722071432594,-151.32101212,9.888e-05,2]
[333362605,1722071432603,-778.39,9.901e-05,2]
[333362606,1722071432612,-2000.0,9.906e-05,2]
[333362607,1722071432621,-1250.0,0.0001,2]
[333362608,1722071432630,-1000.0,0.00010048,2]
[333362609,1722071432639,-650.0,0.00010098,2]
[333362610,1722071432648,-384.26,0.00010471,2]
[333362611,1722071432657,-797.4882958,0.00010472,2]
[333362612,1722071432672,-1657.9417042,0.00010472,2]
[333362613,1722071432681,-1000.6278,0.000105,2]
[333362614,1722071432690,-2175.04710103,0.000105,2]
[333362615,1722071432701,-109.06159897,0.000105,2]
[333362616,1722071432710,-600.0,0.00010519,2]
[333362617,1722071432719,-150.0,0.00010565,2]
[333362618,1722071432728,-1301.0,0.00010566,2]
[333362619,1722071432737,-3879.567,0.00010566,2]
[333362620,1722071432746,-5831.0,0.00010566,2]
[333362621,1722071432755,-28298.321,0.00010566,2]
[333362622,1722071432764,-11713.44109373,0.0001089,2]
[333362623,1722071432773,-163.36125358,0.00010892,2]
[333362624,1722071432783,-168.8,0.00010899,2]
[333362625,1722071432791,-168.8,0.00010899,2]
[333362626,1722071432801,-168.8,0.00010899,2]
[333362627,1722071432810,-168.8,0.00010899,2]
[333362628,1722071432819,-674.23688888,0.00010899,2]
[333362629,1722071432828,-674.23688887,0.000109,2]
[333362630,1722071432838,-150.0,0.000109,2]
[333362631,1722071432848,-168.8,0.000109,2]
[333362632,1722071432857,-160.0,0.000109,2]
[333362633,1722071432866,-674.23688887,0.000109,2]
[333362634,1722071432875,-160.0,0.000109,2]
[333362635,1722071432884,-160.86395712,0.000109,2]
[333362636,1722071432893,-160.0,0.000109,2]
[333362637,1722071432902,-600.0,0.00010957,2]
[333362638,1722071432911,-6786.58,0.00010958,2]
[333362639,1722071432920,-439.97058952,0.00010958,2]
[333362640,1722071432928,-6786.58,0.00010958,2]
[333362641,1722071432938,-6786.58,0.00010958,2]
[333362642,1722071432947,-6786.58,0.00010958,2]
[333362643,1722071432956,-6786.58,0.00010958,2]
[333362644,1722071432965,-6786.58,0.00010958,2]
[333362645,1722071432974,-6786.58,0.00010958,2]
[333362646,1722071432984,-6786.58,0.00010958,2]
[333362647,1722071432993,-655.13,0.00010958,2]
[333362648,1722071433002,-655.13,0.00010958,2]
[333362649,1722071433011,-6786.58,0.00010958,2]
[333362650,1722071433020,-6786.58,0.00010958,2]
[333362651,1722071433029,-655.13,0.00010958,2]
[333362652,1722071433039,-6786.58,0.00010958,2]
[333362653,1722071433049,-655.13,0.00010958,2]
[333362654,1722071433058,-6786.58,0.00010958,2]
[333362655,1722071433068,-655.13,0.00010958,2]
[333362656,1722071433077,-6786.58,0.00010958,2]
[333362657,1722071433086,-5560.46162557,0.00010958,2]
[333362658,1722071433275,-990.05544266,0.00010958,2]
[333362659,1722071433569,-236.06293177,0.00010958,2]
[333362660,1722071433579,-208.19353674,0.00010958,2]
[333362670,1722071438211,-570.66823873,0.00010858,2]
[333362671,1722071438223,-2752.47299442,0.00010858,2]
[333362672,1722071438236,-1202.866863,0.00010858,2]
[333362673,1722071438249,-1248.51712714,0.00010858,2]
[333362674,1722071438434,-144.75117751,0.00010858,2]
[333362676,1722071438443,-160.0,0.000109,2]
[333362678,1722071438454,-273.23882249,0.00010958,2]
[333362841,1722071440211,-160.0,0.000109,2]
[333362843,1722071440222,-173.69764077,0.00010958,2]
[333362845,1722071440234,-326.34135964,0.00010958,2]
[333362847,1722071440246,-328.78864036,0.00010958,2]
[333362849,1722071440256,-232.98636005,0.00010958,2]
[333362851,1722071440268,-333.47,0.00010958,2]
[333362864,1722071440383,-6220.12363995,0.00010958,2]
[333362866,1722071440392,-655.13,0.00010958,2]
[333362868,1722071440402,-6786.58,0.00010958,2]
[333362870,1722071440411,-655.13,0.00010958,2]
[333362872,1722071440421,-655.13,0.00010958,2]
[333362874,1722071440431,-655.13,0.00010958,2]
[333362876,1722071440441,-655.13,0.00010958,2]
[333362878,1722071440450,-655.13,0.00010958,2]
[333362880,1722071440459,-655.13,0.00010958,2]
[333362882,1722071440469,-655.13,0.00010958,2]
[333362884,1722071440478,-655.13,0.00010958,2]
[333362886,1722071440487,-655.13,0.00010958,2]
[333362888,1722071440498,-2565.56,0.00010958,2]
[333362890,1722071440507,-2565.56,0.00010958,2]
[333362892,1722071440516,-500.0,0.00010958,2]
[333362894,1722071440525,-2565.56,0.00010958,2]
[333362896,1722071440534,-500.0,0.00010958,2]
[333362898,1722071440543,-2565.56,0.00010958,2]
[333362900,1722071440552,-352.95298119,0.00010958,2]
[333362901,1722071440563,-2565.56,0.00010958,2]
[333362903,1722071440572,-2565.56,0.00010958,2]
[333362905,1722071440582,-2565.56,0.00010958,2]
[333362907,1722071440591,-2565.56,0.00010958,2]
[333362909,1722071440601,-2565.56,0.00010958,2]
[333362911,1722071440610,-2565.56,0.00010958,2]
[333362913,1722071440619,-2565.56,0.00010958,2]
[333362915,1722071440628,-2565.56,0.00010958,2]
[333362917,1722071440637,-2565.56,0.00010958,2]
[333362919,1722071440646,-2565.56,0.00010958,2]
[333362921,1722071440656,-2565.56,0.00010958,2]
[333362923,1722071440665,-2565.56,0.00010958,2]
[333362925,1722071440674,-2565.56,0.00010958,2]
[333362927,1722071440683,-500.0,0.00010958,2]
[333362929,1722071440692,-500.0,0.00010958,2]
[333362931,1722071440702,-500.0,0.00010958,2]
[333362933,1722071440711,-500.0,0.00010958,2]
[333362935,1722071440720,-545.00913853,0.00010958,2]
[333362937,1722071440729,-566.47046249,0.00010958,2]
[333362939,1722071440738,-500.0,0.00010958,2]
[333362941,1722071440748,-500.0,0.00010958,2]
[333362943,1722071440757,-500.0,0.00010958,2]
[333362944,1722071440766,-531.42288344,0.00010958,2]
[333362946,1722071440775,-500.0,0.00010958,2]
[333362948,1722071440784,-500.0,0.00010958,2]
[333362949,1722071440793,-500.0,0.00010958,2]
[333362951,1722071440803,-287.3767182,0.00010958,2]
[333362953,1722071440812,-500.0,0.00010958,2]
[333362955,1722071440821,-475.34111312,0.00010958,2]
[333362957,1722071440830,-528.769996,0.00010958,2]
[333362959,1722071440839,-508.10936842,0.00010958,2]
[333362961,1722071440848,-507.41371433,0.00010958,2]
[333362963,1722071440858,-537.32997727,0.00010958,2]
[333362965,1722071440867,-533.22850267,0.00010958,2]
[333362966,1722071440876,-254.98624188,0.00010958,2]
[333362968,1722071440885,-2089.18,0.00010958,2]
[333362970,1722071440895,-2089.18,0.00010958,2]
[333362972,1722071440905,-2089.18,0.00010958,2]
[333362974,1722071440915,-2089.18,0.00010958,2]
[333362976,1722071440924,-2089.18,0.00010958,2]
[333362978,1722071440933,-2089.18,0.00010958,2]
[333362980,1722071440942,-2089.18,0.00010958,2]
[333362982,1722071440951,-2089.18,0.00010958,2]
[333362984,1722071440961,-2089.18,0.00010958,2]
[333362986,1722071440970,-2089.18,0.00010958,2]
[333362988,1722071440979,-2089.18,0.00010958,2]
[333362990,1722071440988,-2089.18,0.00010958,2]
[333362992,1722071440997,-2089.18,0.00010958,2]
[333362993,1722071441006,-2089.18,0.00010958,2]
[333362995,1722071441016,-2089.18,0.00010958,2]
[333362997,1722071441025,-2089.18,0.00010958,2]
[333362999,1722071441034,-2089.18,0.00010958,2]
[333363001,1722071441043,-500.0,0.00010958,2]
[333363003,1722071441052,-539.73603546,0.00010958,2]
[333363005,1722071441062,-500.0,0.00010958,2]
[333363007,1722071441072,-500.0,0.00010958,2]
[333363009,1722071441081,-500.0,0.00010958,2]
[333363011,1722071441091,-500.0,0.00010958,2]
[333363013,1722071441100,-219.71808415,0.00010958,2]
[333363015,1722071441110,-833.35,0.00010958,2]
[333363017,1722071441120,-833.35,0.00010958,2]
[333363019,1722071441129,-833.35,0.00010958,2]
[333363021,1722071441139,-833.35,0.00010958,2]
[333363023,1722071441148,-833.35,0.00010958,2]
[333363025,1722071441159,-833.35,0.00010958,2]
[333363027,1722071441171,-833.35,0.00010958,2]
[333363029,1722071441180,-833.35,0.00010958,2]
[333363030,1722071441190,-833.35,0.00010958,2]
[333363032,1722071441199,-833.35,0.00010958,2]
[333363034,1722071441210,-833.35,0.00010958,2]
[333363036,1722071441219,-833.35,0.00010958,2]
[333363038,1722071441229,-833.35,0.00010958,2]
[333363040,1722071441240,-833.35,0.00010958,2]
[333363042,1722071441250,-833.35,0.00010958,2]
[333363044,1722071441259,-833.35,0.00010958,2]
[333363046,1722071441269,-833.35,0.00010958,2]
[333363048,1722071441278,-793.25,0.00010958,2]
[333363050,1722071441288,-793.25,0.00010958,2]
[333363052,1722071441298,-793.25,0.00010958,2]
[333363054,1722071441308,-793.25,0.00010958,2]
[333363056,1722071441320,-793.25,0.00010958,2]
[333363058,1722071441329,-793.25,0.00010958,2]
[333363060,1722071441341,-793.25,0.00010958,2]
[333363062,1722071441351,-793.25,0.00010958,2]
[333363064,1722071441360,-793.25,0.00010958,2]
[333363066,1722071441369,-793.25,0.00010958,2]
[333363068,1722071441379,-793.25,0.00010958,2]
[333363070,1722071441388,-793.25,0.00010958,2]
[333363072,1722071441397,-793.25,0.00010958,2]
[333363074,1722071441406,-793.25,0.00010958,2]
[333363076,1722071441416,-793.25,0.00010958,2]
[333363078,1722071441425,-793.25,0.00010958,2]
[333363080,1722071441434,-1627.65,0.00010958,2]
[333363082,1722071441444,-1627.65,0.00010958,2]
[333363084,1722071441453,-1627.65,0.00010958,2]
[333363085,1722071441462,-1627.65,0.00010958,2]
[333363087,1722071441471,-1627.65,0.00010958,2]
[333363089,1722071441480,-1627.65,0.00010958,2]
[333363091,1722071441489,-1627.65,0.00010958,2]
[333363094,1722071441502,-1627.65,0.00010958,2]
[333363096,1722071441511,-1627.65,0.00010958,2]
[333363098,1722071441520,-1627.65,0.00010958,2]
[333363099,1722071441529,-1627.65,0.00010958,2]
[333363101,1722071441538,-1627.65,0.00010958,2]
[333363104,1722071441548,-1627.65,0.00010958,2]
[333363105,1722071441557,-1627.65,0.00010958,2]
[333363107,1722071441567,-1627.65,0.00010958,2]
[333363109,1722071441576,-1627.65,0.00010958,2]
[333363111,1722071441585,-500.0,0.00010958,2]
[333363113,1722071441594,-500.0,0.00010958,2]
[333363115,1722071441603,-500.0,0.00010958,2]
[333363117,1722071441613,-500.0,0.00010958,2]
[333363119,1722071441622,-500.0,0.00010958,2]
[333363121,1722071441631,-500.0,0.00010958,2]
[333363123,1722071441640,-500.0,0.00010958,2]
[333363125,1722071441649,-500.0,0.00010958,2]
[333363127,1722071441658,-500.0,0.00010958,2]
[333363129,1722071441667,-202.53,0.00010958,2]
[333363131,1722071441676,-500.0,0.00010958,2]
[333363133,1722071441685,-516.72195502,0.00010958,2]
[333363135,1722071441695,-500.0,0.00010958,2]
[333363137,1722071441704,-500.0,0.00010958,2]
[333363138,1722071441713,-500.0,0.00010958,2]
[333363140,1722071441722,-329.49073263,0.00010958,2]
[333363142,1722071441731,-355.94,0.00010958,2]
[333363144,1722071441741,-500.0,0.00010958,2]
[333363146,1722071441750,-1718.19,0.00010958,2]
[333363148,1722071441759,-1718.19,0.00010958,2]
[333363150,1722071441768,-1718.19,0.00010958,2]
[333363152,1722071441778,-1718.19,0.00010958,2]
[333363154,1722071441787,-1718.19,0.00010958,2]
[333363157,1722071441799,-1718.19,0.00010958,2]
[333363159,1722071441812,-1718.19,0.00010958,2]
[333363161,1722071441824,-1718.19,0.00010958,2]
[333363163,1722071441836,-1718.19,0.00010958,2]
[333363166,1722071441849,-1718.19,0.00010958,2]
[333363168,1722071441860,-1718.19,0.00010958,2]
[333363170,1722071441870,-1718.19,0.00010958,2]
[333363172,1722071441880,-1718.19,0.00010958,2]
[333363174,1722071441891,-1718.19,0.00010958,2]
[333363176,1722071441902,-1718.19,0.00010958,2]
[333363179,1722071441914,-1718.19,0.00010958,2]
[333363181,1722071441925,-1718.19,0.00010958,2]
[333363183,1722071441937,-500.0,0.00010958,2]
[333363185,1722071441948,-617.23,0.00010958,2]
[333363187,1722071441960,-500.0,0.00010958,2]
[333363189,1722071441971,-500.0,0.00010958,2]
[333363191,1722071441982,-500.0,0.00010958,2]
[333363193,1722071441994,-500.0,0.00010958,2]
[333363195,1722071442006,-500.0,0.00010958,2]
[333363198,1722071442017,-500.0,0.00010958,2]
[333363200,1722071442028,-500.0,0.00010958,2]
[333363202,1722071442039,-500.0,0.00010958,2]
[333363204,1722071442051,-500.0,0.00010958,2]
[333363206,1722071442062,-372.63,0.00010958,2]
[333363208,1722071442074,-500.0,0.00010958,2]
[333363210,1722071442085,-500.0,0.00010958,2]
[333363213,1722071442097,-500.0,0.00010958,2]
[333363215,1722071442108,-500.0,0.00010958,2]
[333363217,1722071442119,-500.0,0.00010958,2]
[333363219,1722071442130,-500.0,0.00010958,2]
[333363221,1722071442141,-537.38,0.00010958,2]
[333363223,1722071442151,-500.0,0.00010958,2]
[333363225,1722071442165,-500.0,0.00010958,2]
[333363227,1722071442176,-500.0,0.00010958,2]
[333363229,1722071442187,-500.0,0.00010958,2]
[333363231,1722071442198,-500.0,0.00010958,2]
[333363233,1722071442211,-500.0,0.00010958,2]
[333363235,1722071442222,-500.0,0.00010958,2]
[333363237,1722071442234,-582.85845181,0.00010958,2]
[333363239,1722071442247,-500.0,0.00010958,2]
[333363241,1722071442259,-500.0,0.00010958,2]
[333363244,1722071442270,-500.0,0.00010958,2]
[333363246,1722071442282,-466.63958992,0.00010958,2]
[333363248,1722071442293,-500.0,0.00010958,2]
[333363250,1722071442305,-500.0,0.00010958,2]
[333363253,1722071442317,-500.0,0.00010958,2]
[333363255,1722071442329,-500.0,0.00010958,2]
[333363257,1722071442339,-500.0,0.00010958,2]
[333363259,1722071442350,-500.0,0.00010958,2]
[333363261,1722071442361,-500.0,0.00010958,2]
[333363263,1722071442371,-500.0,0.00010958,2]
[333363265,1722071442382,-500.0,0.00010958,2]
[333363268,1722071442392,-500.0,0.00010958,2]
[333363270,1722071442404,-500.0,0.00010958,2]
[333363272,1722071442416,-500.0,0.00010958,2]
[333363274,1722071442428,-500.0,0.00010958,2]
[333363277,1722071442439,-500.0,0.00010958,2]
[333363279,1722071442450,-500.0,0.00010958,2]
[333363281,1722071442460,-500.0,0.00010958,2]
[333363283,1722071442472,-500.0,0.00010958,2]
[333363285,1722071442483,-509.00659299,0.00010958,2]
[333363287,1722071442493,-500.0,0.00010958,2]
[333363289,1722071442506,-500.0,0.00010958,2]
[333363292,1722071442518,-500.0,0.00010958,2]
[333363294,1722071442528,-500.0,0.00010958,2]
[333363296,1722071442539,-500.0,0.00010958,2]
[333363298,1722071442549,-500.0,0.00010958,2]
[333363300,1722071442559,-500.0,0.00010958,2]
[333363302,1722071442571,-500.0,0.00010958,2]
[333363304,1722071442581,-500.0,0.00010958,2]
[333363306,1722071442592,-500.0,0.00010958,2]
[333363308,1722071442604,-500.0,0.00010958,2]
[333363310,1722071442615,-500.0,0.00010958,2]
[333363313,1722071442626,-500.0,0.00010958,2]
[333363315,1722071442637,-500.0,0.00010958,2]
[333363317,1722071442647,-500.0,0.00010958,2]
[333363319,1722071442658,-500.0,0.00010958,2]
[333363321,1722071442670,-500.0,0.00010958,2]
[333363323,1722071442681,-589.84790817,0.00010958,2]
[333363325,1722071442691,-500.0,0.00010958,2]
[333363328,1722071442706,-500.0,0.00010958,2]
[333363330,1722071442716,-500.0,0.00010958,2]
[333363332,1722071442727,-500.0,0.00010958,2]
[333363334,1722071442738,-500.0,0.00010958,2]
[333363336,1722071442749,-500.0,0.00010958,2]
[333363339,1722071442760,-500.0,0.00010958,2]
[333363341,1722071442770,-500.0,0.00010958,2]
[333363343,1722071442781,-500.0,0.00010958,2]
[333363345,1722071442792,-500.0,0.00010958,2]
[333363347,1722071442802,-500.0,0.00010958,2]
[333363349,1722071442814,-500.0,0.00010958,2]
[333363351,1722071442824,-500.0,0.00010958,2]
[333363353,1722071442836,-500.0,0.00010958,2]
[333363355,1722071442847,-500.0,0.00010958,2]
[333363358,1722071442859,-500.0,0.00010958,2]
[333363360,1722071442870,-500.0,0.00010958,2]
[333363362,1722071442881,-500.55950003,0.00010958,2]
[333363365,1722071442892,-301.34907033,0.00010958,2]
[333363368,1722071442902,-500.0,0.00010958,2]
[333363370,1722071442913,-500.0,0.00010958,2]
[333363372,1722071442924,-500.0,0.00010958,2]
[333363374,1722071442934,-500.0,0.00010958,2]
[333363376,1722071442945,-500.0,0.00010958,2]
[333363379,1722071442956,-500.0,0.00010958,2]
[333363381,1722071442968,-500.0,0.00010958,2]
[333363383,1722071442979,-500.0,0.00010958,2]
[333363385,1722071442990,-500.0,0.00010958,2]
[333363387,1722071443001,-500.0,0.00010958,2]
[333363389,1722071443012,-500.0,0.00010958,2]
[333363391,1722071443023,-500.0,0.00010958,2]
[333363393,1722071443034,-500.0,0.00010958,2]
[333363395,1722071443045,-500.0,0.00010958,2]
[333363400,1722071443057,-500.0,0.00010958,2]
[333363403,1722071443068,-500.0,0.00010958,2]
[333363406,1722071443080,-500.0,0.00010958,2]
[333363409,1722071443091,-500.0,0.00010958,2]
[333363412,1722071443101,-528.28,0.00010958,2]
[333363416,1722071443112,-500.0,0.00010958,2]
[333363419,1722071443123,-500.0,0.00010958,2]
[333363422,1722071443134,-483.53299144,0.00010958,2]
[333363425,1722071443145,-500.0,0.00010958,2]
[333363427,1722071443156,-150.0,0.00010958,2]
[333363429,1722071443171,-500.0,0.00010958,2]
[333363431,1722071443182,-500.0,0.00010958,2]
[333363434,1722071443194,-500.0,0.00010958,2]
[333363436,1722071443205,-509.8564338,0.00010958,2]
[333363438,1722071443216,-506.35434108,0.00010958,2]
[333363440,1722071443227,-500.0,0.00010958,2]
[333363442,1722071443239,-592.46,0.00010958,2]
[333363444,1722071443250,-500.0,0.00010958,2]
[333363446,1722071443262,-322.6788568,0.00010958,2]
[333363449,1722071443272,-487.5946339,0.00010958,2]
[333363451,1722071443284,-156.4153661,0.00010958,2]
[333363453,1722071443294,-479.55237765,0.00010958,2]
[333363455,1722071443307,-639.52205505,0.00010958,2]
[333363457,1722071443318,-633.33,0.00010958,2]
[333363459,1722071443330,-150.0,0.00010959,2]
[333363462,1722071443342,-150.21,0.00010981,2]
[333363464,1722071443353,-621.0,0.00010986,2]
[333363466,1722071443365,-248.642,0.00010986,2]
[333363468,1722071443377,-633.33,0.00010988,2]
[333363470,1722071443389,-6786.58,0.00010989,2]
[333363472,1722071443401,-6786.58,0.00010989,2]
[333363475,1722071443412,-655.13,0.00010989,2]
[333363477,1722071443424,-655.13,0.00010989,2]
[333363479,1722071443435,-655.13,0.00010989,2]
[333363481,1722071443447,-655.13,0.00010989,2]
[333363483,1722071443458,-655.13,0.00010989,2]
[333363485,1722071443469,-655.13,0.00010989,2]
[333363488,1722071443480,-655.34,0.00010989,2]
[333363490,1722071443491,-2565.56,0.00010989,2]
[333363492,1722071443503,-2565.56,0.00010989,2]
[333363494,1722071443515,-2565.56,0.00010989,2]
[333363496,1722071443526,-2089.18,0.00010989,2]
[333363498,1722071443536,-2089.18,0.00010989,2]
[333363500,1722071443547,-2089.18,0.00010989,2]
[333363502,1722071443558,-2089.18,0.00010989,2]
[333363505,1722071443570,-2089.18,0.00010989,2]
[333363507,1722071443581,-2089.18,0.00010989,2]
[333363509,1722071443593,-2089.3434314,0.00010989,2]
[333363511,1722071443603,-833.35,0.00010989,2]
[333363513,1722071443615,-833.35,0.00010989,2]
[333363515,1722071443626,-833.35,0.00010989,2]
[333363517,1722071443637,-833.35,0.00010989,2]
[333363520,1722071443647,-833.35,0.00010989,2]
[333363522,1722071443659,-833.35,0.00010989,2]
[333363523,1722071443669,-833.49433724,0.00010989,2]
[333363524,1722071443681,-793.25,0.00010989,2]
[333363525,1722071443691,-793.25,0.00010989,2]
[333363526,1722071443702,-793.25,0.00010989,2]
[333363527,1722071443712,-1627.65,0.00010989,2]
[333363528,1722071443723,-1627.65,0.00010989,2]
[333363529,1722071443734,-1627.65,0.00010989,2]
[333363530,1722071443745,-1718.19,0.00010989,2]
[333363531,1722071443756,-224.0541157,0.0001099,2]
[333363532,1722071443767,-255.12,0.0001099,2]
[333363533,1722071443777,-150.0,0.0001099,2]
[333363534,1722071443788,-500.0,0.0001099,2]
[333363535,1722071443799,-228.80193325,0.00010991,2]
[333363537,1722071443809,-500.0,0.00010991,2]
[333363539,1722071443821,-253.0058462,0.00010991,2]
[333363541,1722071443831,-2197.919428,0.00010991,2]
[333363543,1722071443841,-13883.6276533,0.00010991,2]
[333363545,1722071443852,-240.56532655,0.00010991,2]
[333363547,1722071443863,-56323.11174258,0.00010991,2]
[333363621,1722071444579,-43297.99859792,0.00010991,2]
[333363624,1722071444596,-481.1306512,0.00010991,2]
[333363626,1722071444607,-633.33,0.00010991,2]
[333363628,1722071444617,-633.33,0.00010991,2]
[333363630,1722071444627,-8200.7776739,0.00010991,2]
[333363632,1722071444636,-1949.069818,0.00010992,2]
[333363634,1722071444646,-1700.2202079,0.00010992,2]